Cogmind - Beta 13 @@@ ROGUE MODE // 2024.06.11 @ 19:10:24 Player: Ryozuki Result: Destroyed by D-53 Grenadier with Mini Grenade Launcher Performance ------------- Evolutions (0) 0 Regions Visited (2) 400 Robots Destroyed (11) 55 Value Destroyed (162) 162 Prototype IDs (0) 0 Alien Tech Used (0) 0 Bonus (0) 0 TOTAL SCORE: 617 Bonus ------- None Cogmind --------- Core Integrity 0/250 Matter 258/300 Energy 100/100 System Corruption 9% Temperature Warm (153) Movement Core (350) Ox6 Location -10/Mines Parts ------- > --- POWER (1) -------- (None) > --- PROPULSION (2) --- (None) > --- UTILITY (2) ------ Large Storage Unit > --- WEAPON (2) ------- (None) > --- INVENTORY (15) --- Light Ion Engine Aluminum Leg Wheel Compact Wheel Small Storage Unit Large Storage Unit Small Battery (100) Medium Laser Small Laser Peak State ------------ > --- POWER ------------ Light Nuclear Core > --- PROPULSION ------- Aluminum Leg Aluminum Leg > --- UTILITY ---------- Large Storage Unit Improved Terrain Scanner > --- WEAPON ----------- Medium Laser Light Assault Rifle > --- INVENTORY -------- Ion Engine Ion Engine Light Ion Engine Light Treads Light Treads Aluminum Leg Wheel Compact Wheel Small Storage Unit Large Storage Unit Small Battery Medium Laser Small Laser Assault Rifle Light Assault Rifle [Rating: 12] Favorites ----------- Power Ion Engine Engine Ion Engine Power Core Light Nuclear Core Propulsion Aluminum Leg Treads Light Treads Leg Aluminum Leg Utility Improved Terrain Scanner Device Improved Terrain Scanner Storage Large Storage Unit Weapon Medium Laser Energy Gun Medium Laser Ballistic Gun Light Assault Rifle Build | -11 -10 -10 ------- Run | Yrd Mat Min Slots Evolved . | . . . Power . | . . . Propulsion . | . . . Utility . | . . . Weapon . | . . . Parts Attached 19 | 9 3 7 Power 6 | 3 . 3 Engine 5 | 3 . 2 Core 1 | . . 1 Reactor . | . . . Propulsion 4 | 2 . 2 Treads 2 | . . 2 Leg 2 | 2 . . Wheel . | . . . Hover . | . . . Flight . | . . . Utility 3 | 2 1 . Device 1 | 1 . . Storage 2 | 1 1 . Processor . | . . . Hackware . | . . . Protection . | . . . Artifact . | . . . Weapon 6 | 2 2 2 Energy Gun 3 | 2 1 . Energy Cannon . | . . . Ballistic Gun 3 | . 1 2 Ballistic Cannon . | . . . Launcher . | . . . Special Weapon . | . . . Impact Weapon . | . . . Slashing Weapon . | . . . Piercing Weapon . | . . . Special Melee Weapon . | . . . Unidentified Prototypes . | . . . Parts Lost 12 | . . 12 Power 3 | . . 3 Propulsion 4 | . . 4 Utility 1 | . . 1 Weapon 4 | . . 4 Highest Loss Streak 12 | . . 12 To Critical Strikes . | . . . Average Slot Usage (%) 98 | . 100 96 Engine 11 | . 14 7 Core 2 | . . 6 Leg 27 | . 28 26 Device 13 | . 14 13 Storage 14 | . 14 14 Energy Gun 15 | . 17 13 Ballistic Gun 11 | . 10 14 Naked Turns . | . . . Heaviest Build 30 | 14 30 29 Greatest Support 20 | 20 20 20 Greatest Overweight (x) 1 | . 1 1 Average Overweight (x) . | . . 1 Largest Inventory Capacity 15 | 8 15 15 Average Capacity 13 | 7 13 15 Most Carried 15 | 7 14 15 Average Carried 11 | 4 12 14 Final Capacity 15 | 8 15 15 Final Carried 14 | 7 14 9 Class Distribution -------------------- 100% | Mutant Dominant Class ---------------- Mutant | -10/Materials Mutant | -10/Mines Resources | -11 -10 -10 ----------- Run | Yrd Mat Min Matter Collected 351 | 285 40 26 Remotely . | . . . Salvage Created 228 | 42 89 97 Parts 23 | 7 12 4 Haulers Intercepted . | . . . Recyclers Shooed . | . . . Parts Field Recycled . | . . . Retrieved Matter . | . . . Parts Self-Destructed . | . . . Prevented . | . . . Kills | -11 -10 -10 ------- Run | Yrd Mat Min Combat Hostiles Destroyed 9 | . 6 3 Guns 9 | . 6 3 Classes Destroyed 4 | 1 1 2 Tunneler 3 | 3 . . Swarmer 6 | . 6 . Grunt 2 | . . 2 Assembled 1 | . . 1 Best Kill Streak 3 | 1 3 2 Combat Bots Only 3 | . 3 2 Max Kills in Single Turn 1 | 1 1 1 Gunslinging . | . . . Exploded . | . . . Melee . | . . . Uniques/NPCs Destroyed . | . . . Combat | -11 -10 -10 -------- Run | Yrd Mat Min Hostile Shots Fired 122 | . 24 98 Missed 32 | . 8 24 Damage Taken 1430 | . 124 1306 Core 266 | . 15 251 Absorbed by Shields . | . . . Core Remaining (%) 100 | 100 . . Volleys Fired 46 | 7 18 21 Largest 2 | 2 2 2 Hottest 100 | 90 100 70 Shots Fired 87 | 14 35 38 Gun 87 | 14 35 38 Cannon . | . . . Launcher . | . . . Special . | . . . Kinetic 32 | . 9 23 Thermal 55 | 14 26 15 Explosive . | . . . Electromagnetic . | . . . Robot Hit Streak 9 | 8 6 9 Robot Miss Streak 5 | 1 3 5 Penetration Max . | . . . Secondary Targets 4 | . 3 1 Max Gunslinging Chain 1 | . 1 1 Shots Hit Robots 52 | 10 19 23 Core Hits 26 | 3 10 13 Critical Kills . | . . . Critical Parts Destroyed . | . . . Critical Strikes 4 | 1 1 2 Burn 4 | 1 1 2 Melee Attacks . | . . . Impact . | . . . Slashing . | . . . Piercing . | . . . Sneak Attacks . | . . . Combat Hostiles . | . . . Follow-up Attacks . | . . . Damage Inflicted 636 | 122 223 291 Guns 636 | 122 223 291 Cannons . | . . . Explosions . | . . . Melee . | . . . Ramming . | . . . Kinetic 199 | . 47 152 Thermal 437 | 122 176 139 Explosive . | . . . Electromagnetic . | . . . Impact . | . . . Slashing . | . . . Piercing . | . . . Highest Corruption 9 | . . 9 Average Corruption 7 | . . 7 Corruption Purged . | . . . Corruption Blocked . | . . . Effects 1 | . . 1 Heat Flow Errors 1 | . . 1 Overload Shots . | . . . Overflow Damage . | . . . Projectiles . | . . . Explosions . | . . . Melee . | . . . Knockbacks . | . . . Impact . | . . . Kinetic . | . . . Secondary . | . . . Self-Inflicted Damage . | . . . Shots . | . . . Rammed . | . . . Targets Rammed . | . . . Kicked . | . . . Crushed . | . . . Highest Temperature 232 | 120 195 232 Average Temperature 70 | 47 70 83 Received Heat Transfer 218 | . . 218 Siege Activations . | . . . Robots Corrupted . | . . . Combat Hostiles . | . . . Parts Fried . | . . . Impact Corruptions . | . . . Robots Melted . | . . . Combat Hostiles . | . . . Parts Melted 1 | . 1 . Heat Transferred 1531 | 384 592 555 Parts Sabotaged . | . . . Parts Stolen . | . . . Parts Stripped . | . . . Power Chain Reactions . | . . . Alert | -11 -10 -10 ------- Run | Yrd Mat Min Peak Influence 168 | 15 168 50 Initial 9 | . 9 . Average 51 | 5 78 25 Maximum Alert Level . | . . . Low Security (%) 100 | 100 100 100 Level 1 . | . . . Level 2 . | . . . Level 3 . | . . . Level 4 . | . . . Level 5 . | . . . High Security . | . . . Max Security . | . . . Squads Dispatched 1 | . 1 . Investigation 1 | . 1 . Extermination . | . . . Reinforcement . | . . . Assault . | . . . Garrison . | . . . Intercept . | . . . Searches Triggered . | . . . Construction Impeded . | . . . Haulers Reinforced . | . . . Active Scanning Responses . | . . . Cargo Convoy Interrupts . | . . . Stealth | -11 -10 -10 --------- Run | Yrd Mat Min Distress Signals 1 | . 1 . Communications Jammed . | . . . Distress Signals . | . . . Times Spotted 35 | . 14 21 Peak Tracking Total 14 | . 4 14 Tactical Retreats . | . . . Traps | -11 -10 -10 ------- Run | Yrd Mat Min Traps Triggered 1 | . 1 . Indirectly . | . . . Trap Hack Attempts . | . . . Triggered . | . . . Disarmed . | . . . Reprogrammed . | . . . Reused . | . . . Traps Extracted . | . . . Installed . | . . . Triggered . | . . . Machines | -11 -10 -10 ---------- Run | Yrd Mat Min Machines Disabled . | . . . Max in Single Turn . | . . . Machines Repaired . | . . . Machines Dismantled . | . . . Machines Sabotaged . | . . . Overloaded Fab Kills . | . . . Hacking | -11 -10 -10 --------- Run | Yrd Mat Min Machines Accessed 2 | . 2 . Terminals 2 | . 2 . Fabricators . | . . . Repair Stations . | . . . Recycling Units . | . . . Scanalyzers . | . . . Garrison Access . | . . . Total Hacks 6 | . 6 . Successful 3 | . 3 . Failed 3 | . 3 . Catastrophic . | . . . Database Lockouts . | . . . Manual . | . . . Terminals 6 | . 6 . Fabricators . | . . . Repair Stations . | . . . Recycling Units . | . . . Scanalyzers . | . . . Garrison Access . | . . . Terminal Hacks 3 | . 3 . Record 3 | . 3 . Fabricator Hacks . | . . . Repair Station Hacks . | . . . Recycling Unit Hacks . | . . . Scanalyzer . | . . . Garrison Access Hacks . | . . . Unauthorized Hacks . | . . . Terminals . | . . . Fabricators . | . . . Repair Stations . | . . . Recycling Units . | . . . Scanalyzers . | . . . Garrison Access . | . . . Data Cores Recovered . | . . . Used . | . . . Hacking Detections 2 | . 2 . Full Trace Events 1 | . 1 . Feedback Events . | . . . Feedback Blocked . | . . . Robot Schematics Acquired . | . . . Robots Built . | . . . Authchips . | . . . Time . | . . . Total Robot Build Rating . | . . . Part Schematics Acquired . | . . . Parts Built . | . . . Authchips . | . . . Time . | . . . Total Part Build Rating . | . . . Parts Repaired . | . . . Time . | . . . Parts Recycled . | . . . Recycled Matter . | . . . Retrieved Matter . | . . . Retrieved Components . | . . . Parts Scanalyzed . | . . . Part Schematics Acquired . | . . . Parts Damaged . | . . . Bothacking | -11 -10 -10 ------------ Run | Yrd Mat Min Used RIF Installer . | . . . Robots Hacked . | . . . Non-combat . | . . . Combat . | . . . Robot Hacks Applied . | . . . Relay Couplers Released . | . . . Fabnet Peak Effective % . | . . . Robots Rewired . | . . . Allies Hacked . | . . . Hacks Repelled . | . . . Allies | -11 -10 -10 -------- Run | Yrd Mat Min Total Allies . | . . . Largest Group . | . . . Highest-Rated Group . | . . . Highest-Rated Ally . | . . . Total Orders . | . . . Ally Attacks . | . . . Total Damage . | . . . Kills . | . . . Allies Corrupted . | . . . Allies Melted . | . . . Intel | -11 -10 -10 ------- Run | Yrd Mat Min Robot Analysis Total . | . . . Derelict Logs Recovered . | . . . Drone Launches . | . . . Drone Recoveries . | . . . Exploration | -11 -10 -10 ------------- Run | Yrd Mat Min Turns Passed 1107 | 134 598 375 Spaces Moved 553 | 86 308 159 Core 19 | 19 . . Treads . | . . . Legs 534 | 67 308 159 Wheels . | . . . Hover . | . . . Flight . | . . . Fastest Speed 50 | 50 120 190 Average Speed 167 | 104 173 190 Slowest Speed 190 | 120 190 190 Overloaded Moves . | . . . Propulsion Burnouts . | . . . Robots Hopped . | . . . Cave-ins Triggered . | . . . Exploration Rate (%) 26 | 7 32 39 Regions Visited 2 Branch Regions 1 Pre-discovered Areas . | . . . Known Exits Taken . | . . . Unknown Exits Taken 2 | 1 1 . Scrap Searched . | . . . Spaces Dug . | . . . Terrain Destroyed . | . . . Melee . | . . . Projectile . | . . . AOE . | . . . Terrain Rammed . | . . . Walls Destroyed . | . . . Machines Disabled . | . . . Actions | -11 -10 -10 --------- Run | Yrd Mat Min Total 650 | 115 337 198 Wait 10 | . . 10 Move 551 | 85 307 159 Hop . | . . . Pick Up 23 | 14 8 1 Fast Attach . | . . . Attach 13 | 7 . 6 Detach . | . . . Swap 6 | 2 3 1 Drop 1 | . 1 . Fire 46 | 7 18 21 Melee . | . . . Ram . | . . . Kick . | . . . Crush . | . . . Escape Stasis . | . . . Rewire . | . . . Trap . | . . . Miscellaneous . | . . . Route ------- -11/Scrapyard -10/Materials -10/Mines History --------- Turn | Location | Event 5 | -11/Scrapyard | Discovered new exit (range 15) 135 | -11/Scrapyard | Entered Materials 307 | -10/Materials | Build established: Mutant 707 | -10/Materials | Discovered new exit (range 14) 733 | -10/Materials | Entered Mines 1062 | -10/Mines | Assembled infested the area 1067 | -10/Mines | Assisted by a Guerilla fighting off Assembled 1096 | -10/Mines | Core integrity fell below 50% 1103 | -10/Mines | Core integrity fell below 20% 1108 | -10/Mines | Destroyed by D-53 Grenadier with Mini Grenade Launcher Last Messages --------------- 01087_ Aluminum Leg destroyed. 01090_ Lgt. Assault Rifle destroyed. 01091_ as-07361 destroyed. 01097_ as-69106 destroyed. 01097_ Assault Rifle destroyed. 01097_ System corrupted by crushing effect (+5). 01100_ Ion Engine destroyed. 01100_ System corrupted by crushing effect (+4). 01101_ as-67659 destroyed. 01105_ Lgt. Treads destroyed. 01105_ Ion Engine destroyed. 01107_ System corrupted: Heat flow error (+138). 01107_ Lgt. Assault Rifle destroyed. 01108_ Lgt. Treads destroyed. 01108_ as-25809 destroyed. 01108_ as-38923 destroyed. 01108_ as-41376 destroyed. 01108_ as-69496 destroyed. 01108_ as-14735 destroyed. 01108_ as-01835 destroyed. Map ----- +----------------------------------------------------+ | ???## ##???????# ##? | | ????# ##???#??# #?? | | ????# ##?????# #? | | ????# #???#?## #? | | ????## #?#????##### ##? | | ???#?# #???????#??#####?? | | #???## #??#??????###????? | | ?#?## ##???????????#??#?? | | ??## ## #?#???????????????? | | ??# ### ####???#?????#?#?#? | | ??# #?? #??#???#???????? | | ?## #??## #?#####?#??????# | | ?# ###??# #? ##???#???? | | ?# ##???# #? #???????? | | ?# ##??# ## #???#???? | | ### #### # #?##?????? | | ??#### #?????????? | | ?????## ##### #?????????? | | ?#?#??####???# #?????????? | | ?????????????# ##?#????#??? | | #???#????????## ##??????????? | | ??????????????# #???????????? | | ??????###??##?# ###?#????????? | | ??????# ### ##????? ??????? | | ???#??# %%a ## #??#??????????? | | ??????#@%aa % = #?????????????? | | ??????# %%aa% *%=#?#???????????? | | ????#?# a ! dd "???????? | | ??????#### %] ""??????? | | ??????????## # ### ???#?? | | ???????????# %## ##???? ????? | | ???????#???# #?###???????#????? | | ????????#??# #????????????????? | | ???????????# #????????????????? | | ???????????# #????????????????? | | ???????????# #????????????????? | | ???????????# ##???????????????? | | ??????????? #????????????????? | | ???????????####?#??????????????? | | ???????????????????????????????? | | ???????????????????????????????? | | ???????????????????????????????? | | ???????????????????????????????? | | ???????????????????????????????? | | ???????????????????????????????? | | ???????????????????????????????? | | ???????????????????????????????? | | ???????????????????????????????? | | ???????????????????????????????? | | ???????????????????????????????? | +----------------------------------------------------+ Best States ------------- Heat Dissipation 25 Energy Generation 14 Energy Capacity 250 Matter Stores 300 Matter Capacity 300 Sight Range 16 Terrain Scan Range 16 Terrain Scan Density 10 Evasion (%) 55 Recoil Reduction 1 Item Schematics ----------------- None Robot Schematics ------------------ None Fabricated ------------ Nothing Alien Tech Used ----------------- None Achievements -------------- None Challenges ------------ None Game ------ Seed ExplosiveReinforcedStorage Manual? 0 Play Time 00:11:01 Cumulative 6.3 hours Start 2024.06.11 @ 19:02:04 End 2024.06.11 @ 19:10:24 Sessions 1 Manual Loads 0 Difficulty Rogue Special Mode None Game No. 7 Rogue 7 Adventurer 0 Explorer 0 Win Type - Total 0 Types 0/0/0/0/0/0/0/0/0 Lore% 13 Gallery% 12 Achievement% 9 Wizard Run 0 Options --------- Layout 1 ASCII 0 Keyboard 0 Movement Arrows Keybinds 0 Fullscreen 1 Font 24/Smallcaps Map View 50x35 Zoom Use 0% Tactical HUD 1 Map Filters NONE Filters NONE Steam 1 RUN: ffb8214e-04a0-46ed-b2d5-d64ed8c1d1fa